[Event "*** Titled Tuesday Blitz"]
[Site "Chess.com"]
[Date "2018.12.04"]
[Round "9"]
[White "c63_amg"]
[Black "Durarbayli"]
[Result "0-1"]
[WhiteElo "2626"]
[BlackElo "2711"]
[TimeControl "180+2"]
[EndTime "15:11:52 PST"]
[Termination "Durarbayli won by resignation"]

1. e4 {[%clk 0:03:01.9]} 1... c5 {[%clk 0:03:00.3]} 2. Nf3 {[%clk 0:02:57]} 2...
d6 {[%clk 0:03:00.6]} 3. d4 {[%clk 0:02:55.5]} 3... cxd4 {[%clk 0:03:02]} 4.
Qxd4 {[%clk 0:02:57.1]} 4... a6 {[%clk 0:02:57.2]} 5. c4 {[%clk 0:02:57.4]} 5...
Nf6 {[%clk 0:02:57.6]} 6. h3 {[%clk 0:02:56]} 6... g6 {[%clk 0:02:58.9]} 7. Be2
{[%clk 0:02:56.9]} 7... Bg7 {[%clk 0:03:00]} 8. O-O {[%clk 0:02:56.9]} 8... O-O
{[%clk 0:03:01.2]} 9. Nc3 {[%clk 0:02:58]} 9... Nc6 {[%clk 0:02:56]} 10. Qe3
{[%clk 0:02:50.6]} 10... Nd7 {[%clk 0:02:50.7]} 11. Rd1 {[%clk 0:02:49.5]} 11...
Rb8 {[%clk 0:02:35.6]} 12. Rb1 {[%clk 0:02:50.1]} 12... Qa5 {[%clk 0:02:32.9]}
13. Bd2 {[%clk 0:02:03.8]} 13... Qc5 {[%clk 0:02:32.3]} 14. Qf4 {[%clk
0:02:00.9]} 14... Nde5 {[%clk 0:02:20.2]} 15. Qh4 {[%clk 0:01:35.1]} 15... Nxf3+
{[%clk 0:02:01.5]} 16. Bxf3 {[%clk 0:01:35.7]} 16... Bf6 {[%clk 0:01:43.5]} 17.
Qg3 {[%clk 0:01:17.5]} 17... Qxc4 {[%clk 0:01:39.5]} 18. Nd5 {[%clk 0:01:18.6]}
18... Be5 {[%clk 0:01:36.3]} 19. Qh4 {[%clk 0:01:12.4]} 19... Qxa2 {[%clk
0:01:23.1]} 20. Bc3 {[%clk 0:00:46.2]} 20... Be6 {[%clk 0:01:01]} 21. Bxe5
{[%clk 0:00:41.2]} 21... dxe5 {[%clk 0:00:41.2]} 22. Nxe7+ {[%clk 0:00:29.5]}
22... Nxe7 {[%clk 0:00:42.2]} 23. Qxe7 {[%clk 0:00:31.4]} 23... Kg7 {[%clk
0:00:29.1]} 24. Qc5 {[%clk 0:00:28]} 24... Kf6 {[%clk 0:00:23.3]} 25. Bg4 {[%clk
0:00:21.4]} 25... Qc4 {[%clk 0:00:17.7]} 26. Qe3 {[%clk 0:00:21.3]} 26... Bxg4
{[%clk 0:00:17.5]} 27. hxg4 {[%clk 0:00:22.1]} 27... Kg7 {[%clk 0:00:19]} 28. g5
{[%clk 0:00:23.2]} 28... Rfd8 {[%clk 0:00:15.4]} 29. Qf3 {[%clk 0:00:23.8]}
29... Qe6 {[%clk 0:00:15.8]} 30. Rd5 {[%clk 0:00:22.2]} 30... Qe7 {[%clk
0:00:15.9]} 31. Qg3 {[%clk 0:00:19.3]} 31... Rxd5 {[%clk 0:00:16.9]} 32. exd5
{[%clk 0:00:21.2]} 32... Rd8 {[%clk 0:00:18.2]} 33. Rd1 {[%clk 0:00:22.5]} 33...
b5 {[%clk 0:00:18.7]} 34. Qe3 {[%clk 0:00:19.9]} 34... a5 {[%clk 0:00:17.6]} 35.
f4 {[%clk 0:00:21.2]} 35... e4 {[%clk 0:00:15.5]} 36. Qd4+ {[%clk 0:00:21]}
36... Kg8 {[%clk 0:00:16.8]} 37. d6 {[%clk 0:00:22.4]} 37... Qe6 {[%clk
0:00:16.7]} 38. d7 {[%clk 0:00:22.8]} 38... e3 {[%clk 0:00:17.7]} 39. Re1 {[%clk
0:00:13.7]} 39... Rxd7 {[%clk 0:00:15.1]} 40. Qxe3 {[%clk 0:00:11.7]} 40...
Qxe3+ {[%clk 0:00:16.5]} 41. Rxe3 {[%clk 0:00:13.5]} 41... Rd1+ {[%clk 0:00:17]}
42. Kh2 {[%clk 0:00:14.3]} 42... Rd2 {[%clk 0:00:15.9]} 43. b3 {[%clk
0:00:14.8]} 43... Rb2 {[%clk 0:00:16.5]} 44. Rc3 {[%clk 0:00:15]} 44... Kf8
{[%clk 0:00:16.5]} 45. Re3 {[%clk 0:00:16.5]} 45... Kg7 {[%clk 0:00:13.6]} 46.
Kh3 {[%clk 0:00:17.2]} 46... h5 {[%clk 0:00:13.4]} 47. gxh6+ {[%clk 0:00:17.5]}
47... Kxh6 {[%clk 0:00:15.3]} 48. g4 {[%clk 0:00:18.9]} 48... g5 {[%clk
0:00:15.7]} 49. f5 {[%clk 0:00:17.8]} 49... Kg7 {[%clk 0:00:16.7]} 50. Kg3
{[%clk 0:00:19.3]} 50... Kf6 {[%clk 0:00:17.9]} 51. Kf3 {[%clk 0:00:20.6]} 51...
b4 {[%clk 0:00:18.6]} 52. Kg3 {[%clk 0:00:21.5]} 52... Ra2 {[%clk 0:00:20]} 53.
Rd3 {[%clk 0:00:22.7]} 53... Ra3 {[%clk 0:00:21.3]} 54. Rd6+ {[%clk 0:00:11.5]}
54... Ke5 {[%clk 0:00:22.3]} 55. Rd7 {[%clk 0:00:12.3]} 55... Rxb3+ {[%clk
0:00:23.3]} 56. Kf2 {[%clk 0:00:13.7]} 56... Kf4 {[%clk 0:00:24.3]} 57. Rxf7
{[%clk 0:00:14.1]} 57... Kxg4 {[%clk 0:00:24.1]} 58. f6 {[%clk 0:00:13.7]} 58...
Rf3+ {[%clk 0:00:21.6]} 59. Kg2 {[%clk 0:00:14.5]} 59... Rf5 {[%clk 0:00:22.7]}
60. Rf8 {[%clk 0:00:14]} 60... b3 {[%clk 0:00:23.3]} 61. f7 {[%clk 0:00:14.8]}
61... b2 {[%clk 0:00:21.1]} 62. Rb8 {[%clk 0:00:15.3]} 62... Rxf7 {[%clk
0:00:22.6]} 63. Rxb2 {[%clk 0:00:16.7]} 63... Ra7 {[%clk 0:00:23.9]} 64. Ra2
{[%clk 0:00:14.9]} 64... a4 {[%clk 0:00:25.3]} 65. Ra3 {[%clk 0:00:16.5]} 65...
Kf4 {[%clk 0:00:26.8]} 66. Kf2 {[%clk 0:00:17.7]} 66... g4 {[%clk 0:00:28.5]}
67. Kg2 {[%clk 0:00:18.9]} 67... Ke4 {[%clk 0:00:21.2]} 68. Kg3 {[%clk
0:00:19.7]} 68... Kd4 {[%clk 0:00:21.9]} 69. Kxg4 {[%clk 0:00:21.2]} 69... Kc4
{[%clk 0:00:23.5]} 70. Kf3 {[%clk 0:00:22.1]} 70... Kb4 {[%clk 0:00:25]} 71. Re3
{[%clk 0:00:22.9]} 71... a3 {[%clk 0:00:26.1]} 0-1

[Event "*** Titled Tuesday Blitz"]
[Site "Chess.com"]
[Date "2018.12.04"]
[Round "9"]
[White "amiralfio"]
[Black "Kimster98"]
[Result "1-0"]
[WhiteElo "2447"]
[BlackElo "2553"]
[TimeControl "180+2"]
[EndTime "15:11:54 PST"]
[Termination "amiralfio won by resignation"]

1. d4 {[%clk 0:03:01.9]} 1... Nf6 {[%clk 0:02:59.9]} 2. Nf3 {[%clk 0:03:02.5]}
2... e6 {[%clk 0:03:00.3]} 3. c4 {[%clk 0:03:03.9]} 3... b6 {[%clk 0:03:01.3]}
4. g3 {[%clk 0:03:04]} 4... Bb7 {[%clk 0:03:02.7]} 5. Bg2 {[%clk 0:03:04.3]}
5... Be7 {[%clk 0:03:02.3]} 6. O-O {[%clk 0:03:04.3]} 6... O-O {[%clk
0:03:03.8]} 7. d5 {[%clk 0:03:05.6]} 7... Na6 {[%clk 0:03:04]} 8. Nc3 {[%clk
0:03:03.4]} 8... Bb4 {[%clk 0:03:03.6]} 9. Bf4 {[%clk 0:02:56.8]} 9... Bxc3
{[%clk 0:03:00.5]} 10. bxc3 {[%clk 0:02:58.7]} 10... d6 {[%clk 0:03:02.1]} 11.
dxe6 {[%clk 0:02:58.4]} 11... fxe6 {[%clk 0:03:04]} 12. Qc2 {[%clk 0:02:50.2]}
12... Be4 {[%clk 0:03:02.4]} 13. Qb2 {[%clk 0:02:49.5]} 13... e5 {[%clk
0:02:59.6]} 14. Be3 {[%clk 0:02:49.3]} 14... Ng4 {[%clk 0:03:00.5]} 15. Bg5
{[%clk 0:02:49.2]} 15... Qd7 {[%clk 0:02:56.3]} 16. Nxe5 {[%clk 0:02:40.2]}
16... Qf5 {[%clk 0:02:51]} 17. Nxg4 {[%clk 0:01:35.9]} 17... Qxg4 {[%clk
0:02:45.8]} 18. h3 {[%clk 0:01:12.6]} 18... Qxg5 {[%clk 0:02:38.1]} 19. Bxe4
{[%clk 0:01:12.3]} 19... Rae8 {[%clk 0:02:39.4]} 20. Bd5+ {[%clk 0:01:09.3]}
20... Kh8 {[%clk 0:02:40.8]} 21. Rad1 {[%clk 0:01:05.5]} 21... Nc5 {[%clk
0:02:40.8]} 22. Rd4 {[%clk 0:01:06.7]} 22... a5 {[%clk 0:02:38.9]} 23. Qc2
{[%clk 0:00:59.3]} 23... Re7 {[%clk 0:02:23.5]} 24. Rg4 {[%clk 0:00:56.6]} 24...
Qe5 {[%clk 0:02:16.4]} 25. Rh4 {[%clk 0:00:54.3]} 25... h6 {[%clk 0:02:16.2]}
26. Qg6 {[%clk 0:00:45.5]} 26... Qf6 {[%clk 0:02:11.7]} 27. Qxf6 {[%clk
0:00:24.1]} 27... Rxf6 {[%clk 0:02:13.6]} 28. e4 {[%clk 0:00:25.2]} 28... g5
{[%clk 0:02:02.7]} 29. Rh5 {[%clk 0:00:25]} 29... Re5 {[%clk 0:01:53.7]} 30. Kg2
{[%clk 0:00:13.7]} 30... Nxe4 {[%clk 0:01:49.3]} 31. f4 {[%clk 0:00:14]} 31...
Re7 {[%clk 0:01:39.6]} 32. Re1 {[%clk 0:00:09.1]} 32... Nxg3 {[%clk 0:01:22.4]}
33. Rxh6+ {[%clk 0:00:10.2]} 33... Rxh6 {[%clk 0:01:15.8]} 34. Rxe7 {[%clk
0:00:11.6]} 34... gxf4 {[%clk 0:01:13.6]} 35. Rxc7 {[%clk 0:00:12.6]} 35... Nf5
{[%clk 0:01:12.9]} 36. Kf3 {[%clk 0:00:12.7]} 36... Rxh3+ {[%clk 0:01:12.7]} 37.
Kxf4 {[%clk 0:00:14.2]} 37... Ne3 {[%clk 0:01:05.7]} 38. Be6 {[%clk 0:00:14.2]}
38... Rh6 {[%clk 0:01:04.3]} 39. Re7 {[%clk 0:00:08.1]} 39... Nd1 {[%clk
0:00:58]} 40. Kg5 {[%clk 0:00:09.1]} 40... Rh2 {[%clk 0:00:55.6]} 41. Bg4 {[%clk
0:00:07.2]} 41... Rg2 {[%clk 0:00:50.7]} 42. Kh5 {[%clk 0:00:06.9]} 42... Nxc3
{[%clk 0:00:49.8]} 43. Bf5 {[%clk 0:00:05.5]} 43... Nxa2 {[%clk 0:00:45.2]} 44.
Kh6 {[%clk 0:00:06.4]} 44... Rh2+ {[%clk 0:00:38.2]} 45. Kg6 {[%clk 0:00:07.4]}
45... Rg2+ {[%clk 0:00:39.2]} 46. Kf6 {[%clk 0:00:08.9]} 46... Nb4 {[%clk
0:00:22]} 47. Rh7+ {[%clk 0:00:06.3]} 47... Kg8 {[%clk 0:00:23.4]} 48. Rh6
{[%clk 0:00:06.8]} 48... Rf2 {[%clk 0:00:21]} 49. Ke6 {[%clk 0:00:08]} 49... a4
{[%clk 0:00:17.7]} 50. Rg6+ {[%clk 0:00:07.5]} 50... Kf8 {[%clk 0:00:18.2]} 51.
Rf6+ {[%clk 0:00:08.9]} 51... Kg7 {[%clk 0:00:19.2]} 52. Rf7+ {[%clk 0:00:10.3]}
52... Kg8 {[%clk 0:00:20.3]} 53. Bh7+ {[%clk 0:00:10.6]} 53... Kh8 {[%clk
0:00:21.3]} 54. Rxf2 {[%clk 0:00:11.7]} 54... Kxh7 {[%clk 0:00:22.7]} 55. Rb2
{[%clk 0:00:11.3]} 55... Nd3 {[%clk 0:00:21.4]} 56. Rh2+ {[%clk 0:00:11.5]}
56... Kg6 {[%clk 0:00:22.2]} 57. Kxd6 {[%clk 0:00:13]} 57... a3 {[%clk
0:00:23.6]} 58. Kc6 {[%clk 0:00:14.1]} 58... Nb2 {[%clk 0:00:24.3]} 59. Kb5
{[%clk 0:00:12.7]} 59... a2 {[%clk 0:00:24.6]} 60. Rh1 {[%clk 0:00:14]} 60...
Kf5 {[%clk 0:00:25.9]} 61. Ra1 {[%clk 0:00:15.3]} 61... Ke4 {[%clk 0:00:19]} 62.
Rxa2 {[%clk 0:00:16]} 62... Nd3 {[%clk 0:00:20.9]} 63. Ra6 {[%clk 0:00:16.4]}
63... Kd4 {[%clk 0:00:20.7]} 64. Rxb6 {[%clk 0:00:17.3]} 64... Ne5 {[%clk
0:00:22.6]} 65. Rd6+ {[%clk 0:00:18.2]} 65... Ke4 {[%clk 0:00:24.1]} 66. Re6
{[%clk 0:00:19.5]} 66... Kd4 {[%clk 0:00:25.6]} 67. Rxe5 {[%clk 0:00:20.7]}
67... Kxe5 {[%clk 0:00:27.5]} 68. c5 {[%clk 0:00:22.2]} 68... Ke6 {[%clk
0:00:28.1]} 69. Kb6 {[%clk 0:00:23.3]} 1-0

[Event "*** Titled Tuesday Blitz"]
[Site "Chess.com"]
[Date "2018.12.04"]
[Round "9"]
[White "gkchesstiger"]
[Black "nailbeshirli"]
[Result "1-0"]
[WhiteElo "2811"]
[BlackElo "2615"]
[TimeControl "180+2"]
[EndTime "15:11:55 PST"]
[Termination "gkchesstiger won by resignation"]

1. d4 {[%clk 0:03:01.9]} 1... Nf6 {[%clk 0:02:55.1]} 2. Nf3 {[%clk 0:03:02.5]}
2... e6 {[%clk 0:02:47.3]} 3. Bf4 {[%clk 0:03:02.8]} 3... Be7 {[%clk 0:02:44.5]}
4. h3 {[%clk 0:03:03]} 4... c5 {[%clk 0:02:41.4]} 5. e3 {[%clk 0:03:04.1]} 5...
O-O {[%clk 0:02:38.7]} 6. Nbd2 {[%clk 0:03:04.3]} 6... Nc6 {[%clk 0:02:32.6]} 7.
c3 {[%clk 0:03:04.9]} 7... d5 {[%clk 0:02:33.3]} 8. Bd3 {[%clk 0:02:56.6]} 8...
c4 {[%clk 0:02:30.3]} 9. Bc2 {[%clk 0:02:56.1]} 9... b5 {[%clk 0:02:31.5]} 10.
a3 {[%clk 0:02:56.3]} 10... a5 {[%clk 0:02:29.6]} 11. e4 {[%clk 0:02:57.1]}
11... dxe4 {[%clk 0:02:25.8]} 12. Nxe4 {[%clk 0:02:57.5]} 12... Nd5 {[%clk
0:02:25]} 13. Bh2 {[%clk 0:02:48]} 13... f5 {[%clk 0:02:19.7]} 14. Ned2 {[%clk
0:02:41.3]} 14... Bd6 {[%clk 0:02:16.9]} 15. Bxd6 {[%clk 0:02:40.1]} 15... Qxd6
{[%clk 0:02:16.8]} 16. O-O {[%clk 0:02:36.8]} 16... a4 {[%clk 0:02:12.1]} 17.
Re1 {[%clk 0:02:36]} 17... Bb7 {[%clk 0:02:04]} 18. Nf1 {[%clk 0:02:15.7]} 18...
Rae8 {[%clk 0:01:59.5]} 19. Qd2 {[%clk 0:02:08.3]} 19... Nf4 {[%clk 0:01:56.1]}
20. Re3 {[%clk 0:01:57]} 20... Ne7 {[%clk 0:01:50.8]} 21. Rae1 {[%clk
0:01:51.4]} 21... Ned5 {[%clk 0:01:47.6]} 22. Re5 {[%clk 0:01:51.1]} 22... Ng6
{[%clk 0:01:47.5]} 23. Bxf5 {[%clk 0:01:19.8]} 23... Nxe5 {[%clk 0:01:42.7]} 24.
dxe5 {[%clk 0:01:20.9]} 24... Qe7 {[%clk 0:01:38.2]} 25. Be4 {[%clk 0:01:16.3]}
25... Nf4 {[%clk 0:01:35.9]} 26. Ng3 {[%clk 0:01:04.3]} 26... Bxe4 {[%clk
0:01:25.4]} 27. Rxe4 {[%clk 0:01:05]} 27... Nxh3+ {[%clk 0:01:20.7]} 28. Kh2
{[%clk 0:01:05.5]} 28... Rd8 {[%clk 0:01:12.9]} 29. Qe3 {[%clk 0:00:36.6]} 29...
Rd3 {[%clk 0:01:11.5]} 30. Qb6 {[%clk 0:00:37.4]} 30... Nf4 {[%clk 0:01:03.9]}
31. Qxb5 {[%clk 0:00:36.2]} 31... Nxg2 {[%clk 0:00:55.8]} 32. Kxg2 {[%clk
0:00:27.6]} 32... Rfxf3 {[%clk 0:00:48.8]} 33. Qxc4 {[%clk 0:00:27.4]} 33... h5
{[%clk 0:00:41.4]} 34. Rd4 {[%clk 0:00:24.7]} 34... Rxd4 {[%clk 0:00:40.9]} 35.
Qxd4 {[%clk 0:00:25]} 35... Rf8 {[%clk 0:00:42.8]} 36. Nxh5 {[%clk 0:00:25.1]}
36... Qb7+ {[%clk 0:00:39.4]} 37. Kg1 {[%clk 0:00:24]} 37... Qxb2 {[%clk
0:00:38.8]} 38. Ng3 {[%clk 0:00:19.4]} 38... Qxa3 {[%clk 0:00:36.7]} 39. Kg2
{[%clk 0:00:17.2]} 39... Qa2 {[%clk 0:00:29.9]} 40. Ne4 {[%clk 0:00:17.7]} 40...
Qd5 {[%clk 0:00:27.9]} 41. Qxa4 {[%clk 0:00:17.4]} 41... Qxe5 {[%clk 0:00:29.1]}
42. Qc4 {[%clk 0:00:15.9]} 42... Rf4 {[%clk 0:00:26.1]} 43. f3 {[%clk 0:00:17]}
43... Rf5 {[%clk 0:00:24.5]} 44. Qd3 {[%clk 0:00:13.9]} 44... Qf4 {[%clk
0:00:23.1]} 45. Qd8+ {[%clk 0:00:13.3]} 45... Rf8 {[%clk 0:00:23.5]} 46. Qd3
{[%clk 0:00:14.2]} 46... Qf5 {[%clk 0:00:20.3]} 47. c4 {[%clk 0:00:15]} 47...
Rb8 {[%clk 0:00:18.5]} 48. Qc3 {[%clk 0:00:15.2]} 48... Qg6+ {[%clk 0:00:14]}
49. Ng3 {[%clk 0:00:15.3]} 49... Rc8 {[%clk 0:00:13.1]} 50. Kf2 {[%clk
0:00:13.8]} 50... Qh6 {[%clk 0:00:11.4]} 51. Kg2 {[%clk 0:00:13.4]} 51... Qg5
{[%clk 0:00:10.1]} 52. Kh3 {[%clk 0:00:12.1]} 52... Qf4 {[%clk 0:00:10.3]} 53.
c5 {[%clk 0:00:12.1]} 53... Qh6+ {[%clk 0:00:09.9]} 54. Kg2 {[%clk 0:00:13]}
54... Qg5 {[%clk 0:00:08.1]} 55. Qe1 {[%clk 0:00:13.7]} 55... Kf7 {[%clk
0:00:03.9]} 56. Qb4 {[%clk 0:00:12.4]} 56... Qxc5 {[%clk 0:00:05.3]} 57. Qf4+
{[%clk 0:00:13.6]} 57... Qf5 {[%clk 0:00:05.6]} 58. Nxf5 {[%clk 0:00:13.8]} 1-0

[Event "*** Titled Tuesday Blitz"]
[Site "Chess.com"]
[Date "2018.12.04"]
[Round "9"]
[White "vugarrasulov"]
[Black "Tjktiger"]
[Result "0-1"]
[WhiteElo "2797"]
[BlackElo "2711"]
[TimeControl "180+2"]
[EndTime "15:12:04 PST"]
[Termination "Tjktiger won by resignation"]

1. e4 {[%clk 0:03:01.9]} 1... c5 {[%clk 0:02:55.3]} 2. Nf3 {[%clk 0:03:03]} 2...
Nc6 {[%clk 0:02:53.7]} 3. d4 {[%clk 0:03:04.2]} 3... cxd4 {[%clk 0:02:54.6]} 4.
Nxd4 {[%clk 0:03:06.1]} 4... g6 {[%clk 0:02:56.1]} 5. c4 {[%clk 0:03:06.6]} 5...
Bg7 {[%clk 0:02:57.4]} 6. Be3 {[%clk 0:03:07.5]} 6... Qb6 {[%clk 0:02:58.9]} 7.
Nb3 {[%clk 0:03:00.6]} 7... Qd8 {[%clk 0:02:59.8]} 8. Nc3 {[%clk 0:02:57.5]}
8... Bxc3+ {[%clk 0:03:00.3]} 9. bxc3 {[%clk 0:02:59.4]} 9... Nf6 {[%clk
0:03:02]} 10. f3 {[%clk 0:03:00.5]} 10... d6 {[%clk 0:03:02.8]} 11. Be2 {[%clk
0:02:53.7]} 11... O-O {[%clk 0:03:03.4]} 12. O-O {[%clk 0:02:54]} 12... b6
{[%clk 0:03:04.3]} 13. a4 {[%clk 0:02:49.6]} 13... Qc7 {[%clk 0:03:00.3]} 14. a5
{[%clk 0:02:45.3]} 14... Nxa5 {[%clk 0:02:30.2]} 15. Nxa5 {[%clk 0:02:45.9]}
15... bxa5 {[%clk 0:02:32.1]} 16. Qa4 {[%clk 0:02:46.2]} 16... Be6 {[%clk
0:02:31.6]} 17. Qxa5 {[%clk 0:02:42.5]} 17... Rfc8 {[%clk 0:02:32.2]} 18. Qxc7
{[%clk 0:02:40.4]} 18... Rxc7 {[%clk 0:02:33]} 19. Bb6 {[%clk 0:02:32.8]} 19...
Rc6 {[%clk 0:02:23.2]} 20. c5 {[%clk 0:02:28.2]} 20... dxc5 {[%clk 0:02:06]} 21.
Rxa7 {[%clk 0:02:26.5]} 21... Rb8 {[%clk 0:01:32.1]} 22. Bc7 {[%clk 0:02:21]}
22... Rb2 {[%clk 0:01:29.7]} 23. Re1 {[%clk 0:02:22.2]} 23... Nd7 {[%clk
0:01:15.2]} 24. Bf4 {[%clk 0:02:12.8]} 24... h5 {[%clk 0:01:04.1]} 25. h4 {[%clk
0:02:08.9]} 25... f6 {[%clk 0:00:49.5]} 26. Bf1 {[%clk 0:02:09.7]} 26... Kf7
{[%clk 0:00:47.7]} 27. Rd1 {[%clk 0:02:08.2]} 27... Ne5 {[%clk 0:00:38.8]} 28.
Ra8 {[%clk 0:01:43.5]} 28... Rb3 {[%clk 0:00:24.4]} 29. Bh6 {[%clk 0:01:42.2]}
29... Bc4 {[%clk 0:00:17.1]} 30. f4 {[%clk 0:01:11.2]} 30... Bxf1 {[%clk
0:00:15.1]} 31. fxe5 {[%clk 0:01:12.6]} 31... Be2 {[%clk 0:00:15.3]} 32. Rd2
{[%clk 0:01:09.9]} 32... Bg4 {[%clk 0:00:05.8]} 33. exf6 {[%clk 0:01:11.1]}
33... Rxf6 {[%clk 0:00:05.9]} 34. Bg5 {[%clk 0:01:02.9]} 34... Rb1+ {[%clk
0:00:04.6]} 35. Kh2 {[%clk 0:01:01.2]} 35... Rd6 {[%clk 0:00:03.9]} 36. Rf2+
{[%clk 0:00:57.6]} 36... Ke6 {[%clk 0:00:05.5]} 37. Re8 {[%clk 0:00:54.2]} 37...
Rb7 {[%clk 0:00:05]} 38. c4 {[%clk 0:00:49.1]} 38... Rd4 {[%clk 0:00:05.6]} 39.
Rf6+ {[%clk 0:00:38]} 39... Kd7 {[%clk 0:00:05.3]} 40. Rff8 {[%clk 0:00:39.2]}
40... Rxe4 {[%clk 0:00:05.4]} 41. Rd8+ {[%clk 0:00:34.7]} 41... Kc6 {[%clk
0:00:06.1]} 42. Bf4 {[%clk 0:00:29.3]} 42... Rxc4 {[%clk 0:00:06.3]} 43. Bg3
{[%clk 0:00:27.3]} 43... Rc2 {[%clk 0:00:06.5]} 44. Rg8 {[%clk 0:00:26.5]} 44...
Bf5 {[%clk 0:00:06.3]} 45. Rd1 {[%clk 0:00:20.2]} 45... Rbb2 {[%clk 0:00:07]}
46. Rg1 {[%clk 0:00:21.4]} 46... Be4 {[%clk 0:00:08.2]} 47. Rc8+ {[%clk
0:00:19.5]} 47... Kd7 {[%clk 0:00:08.1]} 48. Rc7+ {[%clk 0:00:18]} 48... Ke6
{[%clk 0:00:07.1]} 49. Bf4 {[%clk 0:00:18.8]} 49... Rxg2+ {[%clk 0:00:07.7]} 50.
Rxg2 {[%clk 0:00:19.9]} 50... Rxg2+ {[%clk 0:00:09.2]} 51. Kh3 {[%clk
0:00:21.5]} 51... Rc2 {[%clk 0:00:10]} 52. Bg5 {[%clk 0:00:21.6]} 52... Bf5+
{[%clk 0:00:09.5]} 53. Kg3 {[%clk 0:00:22.5]} 53... c4 {[%clk 0:00:10.4]} 54.
Rxe7+ {[%clk 0:00:23]} 54... Kd6 {[%clk 0:00:10.8]} 55. Re3 {[%clk 0:00:23.9]}
55... Kd5 {[%clk 0:00:10.8]} 56. Bf6 {[%clk 0:00:25.2]} 56... Rd2 {[%clk
0:00:10.4]} 57. Kf4 {[%clk 0:00:25.8]} 57... Rg2 {[%clk 0:00:10.2]} 58. Re5+
{[%clk 0:00:25.3]} 58... Kc6 {[%clk 0:00:11.3]} 59. Ra5 {[%clk 0:00:26.3]} 59...
Rg4+ {[%clk 0:00:11.6]} 60. Ke3 {[%clk 0:00:27.2]} 60... c3 {[%clk 0:00:11.2]}
61. Bxc3 {[%clk 0:00:22.6]} 61... Rxh4 {[%clk 0:00:12.3]} 62. Bd4 {[%clk
0:00:23.7]} 62... Re4+ {[%clk 0:00:13.1]} 63. Kd3 {[%clk 0:00:25]} 63... Re5+
{[%clk 0:00:14.2]} 0-1

[Event "*** Titled Tuesday Blitz"]
[Site "Chess.com"]
[Date "2018.12.04"]
[Round "9"]
[White "evgenyermolaev"]
[Black "rasmussvane"]
[Result "1-0"]
[WhiteElo "2446"]
[BlackElo "2687"]
[TimeControl "180+2"]
[EndTime "15:12:09 PST"]
[Termination "evgenyermolaev won by resignation"]

1. e4 {[%clk 0:03:01.7]} 1... c6 {[%clk 0:03:01.4]} 2. Nc3 {[%clk 0:03:00.2]}
2... d5 {[%clk 0:03:02.9]} 3. Nf3 {[%clk 0:03:01.5]} 3... dxe4 {[%clk
0:03:04.4]} 4. Nxe4 {[%clk 0:03:03]} 4... Nf6 {[%clk 0:03:06.1]} 5. Nxf6+ {[%clk
0:03:04.3]} 5... exf6 {[%clk 0:03:07.2]} 6. d4 {[%clk 0:03:05.5]} 6... Bd6
{[%clk 0:03:08.8]} 7. Be2 {[%clk 0:03:06.2]} 7... O-O {[%clk 0:03:10.5]} 8. O-O
{[%clk 0:03:07.8]} 8... Re8 {[%clk 0:03:12.1]} 9. h3 {[%clk 0:03:06.1]} 9... Nd7
{[%clk 0:03:13.4]} 10. c4 {[%clk 0:03:02]} 10... Nf8 {[%clk 0:03:14.8]} 11. Re1
{[%clk 0:02:51.9]} 11... Ng6 {[%clk 0:03:15.9]} 12. Bf1 {[%clk 0:02:53.4]} 12...
Rxe1 {[%clk 0:03:16.2]} 13. Qxe1 {[%clk 0:02:54.3]} 13... Bf5 {[%clk 0:03:17.6]}
14. Be3 {[%clk 0:02:38.3]} 14... Qd7 {[%clk 0:03:18.8]} 15. Qc3 {[%clk
0:02:37.5]} 15... h5 {[%clk 0:02:40.3]} 16. Re1 {[%clk 0:02:32.8]} 16... a5
{[%clk 0:02:37]} 17. a3 {[%clk 0:02:32.3]} 17... a4 {[%clk 0:02:38.5]} 18. Bc1
{[%clk 0:02:06.8]} 18... Bc7 {[%clk 0:02:24.7]} 19. Qb4 {[%clk 0:01:51.6]} 19...
Qc8 {[%clk 0:02:16.4]} 20. Bd2 {[%clk 0:01:26.8]} 20... Be6 {[%clk 0:01:52]} 21.
Qc5 {[%clk 0:01:08.1]} 21... Bf5 {[%clk 0:00:57.5]} 22. Kh1 {[%clk 0:00:53.8]}
22... Qd7 {[%clk 0:00:55.4]} 23. d5 {[%clk 0:00:50.4]} 23... Bd6 {[%clk
0:00:55.8]} 24. Qb6 {[%clk 0:00:23.2]} 24... c5 {[%clk 0:00:50.8]} 25. Be3
{[%clk 0:00:24.5]} 25... Rc8 {[%clk 0:00:42.1]} 26. Qa5 {[%clk 0:00:20.9]} 26...
Be4 {[%clk 0:00:35.1]} 27. Be2 {[%clk 0:00:09.4]} 27... Nh4 {[%clk 0:00:31.6]}
28. Kg1 {[%clk 0:00:02.2]} 28... Bxf3 {[%clk 0:00:32.4]} 29. Bxf3 {[%clk
0:00:03.6]} 29... Nxf3+ {[%clk 0:00:33.3]} 30. gxf3 {[%clk 0:00:04.8]} 30...
Qxh3 {[%clk 0:00:34.9]} 31. f4 {[%clk 0:00:05.7]} 31... Re8 {[%clk 0:00:25]} 32.
Qxa4 {[%clk 0:00:05.9]} 32... Re4 {[%clk 0:00:25.7]} 33. Qc2 {[%clk 0:00:05.4]}
33... f5 {[%clk 0:00:23]} 34. Qd2 {[%clk 0:00:04.2]} 34... h4 {[%clk 0:00:22]}
35. b4 {[%clk 0:00:05.1]} 35... cxb4 {[%clk 0:00:21.3]} 36. c5 {[%clk 0:00:05]}
36... Qg4+ {[%clk 0:00:18.8]} 37. Kf1 {[%clk 0:00:04.1]} 37... h3 {[%clk
0:00:09.1]} 38. f3 {[%clk 0:00:02.9]} 38... Qxf3+ {[%clk 0:00:09.9]} 39. Qf2
{[%clk 0:00:04.4]} 39... Qxf2+ {[%clk 0:00:06.5]} 40. Kxf2 {[%clk 0:00:05.4]}
40... Bf8 {[%clk 0:00:05.1]} 41. axb4 {[%clk 0:00:06.1]} 41... Rxb4 {[%clk
0:00:06.3]} 42. d6 {[%clk 0:00:06.6]} 42... Rb2+ {[%clk 0:00:07.5]} 43. Kg3
{[%clk 0:00:05.6]} 43... Rb3 {[%clk 0:00:08]} 44. Kxh3 {[%clk 0:00:04.2]} 44...
f6 {[%clk 0:00:07.9]} 45. Kg2 {[%clk 0:00:04.7]} 45... Kf7 {[%clk 0:00:09.3]}
46. Kf3 {[%clk 0:00:06.5]} 46... Rd3 {[%clk 0:00:10.4]} 47. Rb1 {[%clk
0:00:07.2]} 47... g5 {[%clk 0:00:11.6]} 48. Rxb7+ {[%clk 0:00:08.5]} 48... Kg6
{[%clk 0:00:12.8]} 49. Ke2 {[%clk 0:00:09.8]} 49... Rd5 {[%clk 0:00:13.6]} 50.
d7 {[%clk 0:00:09.6]} 50... gxf4 {[%clk 0:00:13.2]} 51. Bf2 {[%clk 0:00:11.1]}
51... Kg5 {[%clk 0:00:12]} 52. c6 {[%clk 0:00:12.2]} 52... Kg4 {[%clk
0:00:09.4]} 53. Rb3 {[%clk 0:00:07.1]} 53... f3+ {[%clk 0:00:04.9]} 54. Rxf3
{[%clk 0:00:07.9]} 54... Bb4 {[%clk 0:00:06.2]} 55. Rd3 {[%clk 0:00:07.9]} 55...
Re5+ {[%clk 0:00:06.4]} 56. Kd1 {[%clk 0:00:07]} 56... Ba5 {[%clk 0:00:08.3]}
57. d8=Q {[%clk 0:00:05.8]} 57... Bxd8 {[%clk 0:00:09.4]} 58. Rxd8 {[%clk
0:00:07.7]} 58... Kf3 {[%clk 0:00:10.9]} 59. c7 {[%clk 0:00:07.5]} 59... Kxf2
{[%clk 0:00:11.1]} 60. c8=Q {[%clk 0:00:08.7]} 60... f4 {[%clk 0:00:12.6]} 61.
Qc2+ {[%clk 0:00:09.2]} 61... Kg3 {[%clk 0:00:13.7]} 62. Rd3+ {[%clk 0:00:10.4]}
62... Re3 {[%clk 0:00:14.8]} 63. Rxe3+ {[%clk 0:00:11.5]} 63... fxe3 {[%clk
0:00:16.7]} 64. Ke2 {[%clk 0:00:12.9]} 64... Kf4 {[%clk 0:00:18.2]} 65. Qd3
{[%clk 0:00:13.9]} 1-0